[Event "Early-Titled-Tuesday-Blitz-January-16-2024"]
[Site "Chess.com"]
[Date "2024.01.16"]
[Round "1"]
[White "Superfelix"]
[Black "Grandelicious"]
[Result "1-0"]
[WhiteElo "2523"]
[BlackElo "2935"]
[TimeControl "180+1"]
[EndTime "8:07:37 PST"]
[Termination "Superfelix won by resignation"]

1. e4 {[%clk 0:03:00.9]} 1... e6 {[%clk 0:02:58.3]} 2. d4 {[%clk 0:02:59.3]}
2... d5 {[%clk 0:02:58.7]} 3. exd5 {[%clk 0:02:59.4]} 3... exd5 {[%clk
0:02:58.9]} 4. Bd3 {[%clk 0:02:59.6]} 4... Nc6 {[%clk 0:02:54]} 5. c3 {[%clk
0:02:58.6]} 5... Bd6 {[%clk 0:02:54.6]} 6. h3 {[%clk 0:02:58.4]} 6... Nge7
{[%clk 0:02:53.2]} 7. Ne2 {[%clk 0:02:56.3]} 7... Ng6 {[%clk 0:02:46.5]} 8. Nd2
{[%clk 0:02:53.8]} 8... Qg5 {[%clk 0:02:27.7]} 9. g3 {[%clk 0:02:40.2]} 9... Qf6
{[%clk 0:02:25.6]} 10. Nf1 {[%clk 0:02:32]} 10... Qf3 {[%clk 0:02:16.3]} 11. Rh2
{[%clk 0:02:29.7]} 11... O-O {[%clk 0:02:11.9]} 12. Ng1 {[%clk 0:02:02.3]} 12...
Qf6 {[%clk 0:01:58.8]} 13. Qf3 {[%clk 0:01:49.4]} 13... Qe7+ {[%clk 0:01:58.4]}
14. Ne3 {[%clk 0:01:46.1]} 14... Be6 {[%clk 0:01:51.9]} 15. Bd2 {[%clk
0:01:38.3]} 15... f5 {[%clk 0:01:50.5]} 16. O-O-O {[%clk 0:01:29.6]} 16... Qf7
{[%clk 0:01:42.3]} 17. Ng2 {[%clk 0:01:27.4]} 17... f4 {[%clk 0:01:37.5]} 18. g4
{[%clk 0:01:25.6]} 18... Nge5 {[%clk 0:01:28.3]} 19. dxe5 {[%clk 0:01:20.3]}
19... Nxe5 {[%clk 0:01:29.2]} 20. Qe2 {[%clk 0:01:18.7]} 20... f3 {[%clk
0:01:29.8]} 21. Nxf3 {[%clk 0:01:13.6]} 21... Nxf3 {[%clk 0:01:30.7]} 22. Rhh1
{[%clk 0:01:11.2]} 22... Rae8 {[%clk 0:01:31.3]} 23. Be3 {[%clk 0:01:05.5]}
23... d4 {[%clk 0:01:28.3]} 24. cxd4 {[%clk 0:01:01.1]} 24... Bxa2 {[%clk
0:01:28.1]} 25. Qc2 {[%clk 0:00:45.8]} 25... g6 {[%clk 0:01:28.2]} 26. Qc3
{[%clk 0:00:40.2]} 26... a5 {[%clk 0:01:18.9]} 27. d5 {[%clk 0:00:33.1]} 27...
Bb4 {[%clk 0:01:09.6]} 28. Qc2 {[%clk 0:00:33.3]} 28... Bxd5 {[%clk 0:01:09.1]}
29. Nf4 {[%clk 0:00:32]} 29... Bb3 {[%clk 0:01:09.1]} 30. Qb1 {[%clk 0:00:31.2]}
30... Qf6 {[%clk 0:00:58.9]} 31. Bb5 {[%clk 0:00:20]} 31... Re5 {[%clk 0:00:42]}
32. Qd3 {[%clk 0:00:16]} 32... Bxd1 {[%clk 0:00:29.9]} 33. Bc4+ {[%clk
0:00:15.4]} 33... Kg7 {[%clk 0:00:28.2]} 34. Rxd1 {[%clk 0:00:16]} 34... c6
{[%clk 0:00:25.1]} 35. Ba2 {[%clk 0:00:15.2]} 35... Re7 {[%clk 0:00:21.4]} 36.
Kb1 {[%clk 0:00:15.3]} 36... Ne5 {[%clk 0:00:18.3]} 37. Qb3 {[%clk 0:00:15]}
37... Kh8 {[%clk 0:00:16.5]} 38. g5 {[%clk 0:00:15.5]} 38... Qg7 {[%clk
0:00:16.6]} 39. Bd4 {[%clk 0:00:16.1]} 39... Rd8 {[%clk 0:00:15.4]} 40. Ne6
{[%clk 0:00:16.5]} 40... Rxe6 {[%clk 0:00:11.1]} 41. Qxe6 {[%clk 0:00:16]} 41...
Rxd4 {[%clk 0:00:07.4]} 42. Rxd4 {[%clk 0:00:16.6]} 42... Be7 {[%clk 0:00:02.9]}
43. Re4 {[%clk 0:00:15.1]} 43... Bxg5 {[%clk 0:00:03.5]} 44. Rxe5 {[%clk
0:00:15.2]} 1-0

[Event "Early-Titled-Tuesday-Blitz-January-16-2024"]
[Site "Chess.com"]
[Date "2024.01.16"]
[Round "1"]
[White "Nouali_Mohamed"]
[Black "FMCarmona"]
[Result "1-0"]
[WhiteElo "2583"]
[BlackElo "2186"]
[TimeControl "180+1"]
[EndTime "8:07:37 PST"]
[Termination "Nouali_Mohamed won on time"]

1. e4 {[%clk 0:02:20.7]} 1... e5 {[%clk 0:02:59.7]} 2. Bc4 {[%clk 0:01:38.9]}
2... Nc6 {[%clk 0:02:53.5]} 3. Nc3 {[%clk 0:01:39]} 3... Nf6 {[%clk 0:02:51.3]}
4. d3 {[%clk 0:01:39]} 4... Bc5 {[%clk 0:02:40.7]} 5. f4 {[%clk 0:01:39.1]} 5...
d6 {[%clk 0:02:30.2]} 6. Nf3 {[%clk 0:01:39.2]} 6... a6 {[%clk 0:02:28]} 7. a4
{[%clk 0:01:31.9]} 7... O-O {[%clk 0:02:10.4]} 8. f5 {[%clk 0:01:31.3]} 8... h6
{[%clk 0:01:57.2]} 9. Qe2 {[%clk 0:01:16.4]} 9... Re8 {[%clk 0:01:51.3]} 10. h4
{[%clk 0:00:48.6]} 10... Nd4 {[%clk 0:01:28.4]} 11. Nxd4 {[%clk 0:00:47.1]}
11... exd4 {[%clk 0:01:26.3]} 12. Nd5 {[%clk 0:00:42.8]} 12... Nxd5 {[%clk
0:01:21.2]} 13. Bxd5 {[%clk 0:00:43.7]} 13... c6 {[%clk 0:01:08]} 14. Bb3 {[%clk
0:00:42.7]} 14... Bxf5 {[%clk 0:00:59]} 15. Qh5 {[%clk 0:00:22.7]} 15... Be6
{[%clk 0:00:52]} 16. Bg5 {[%clk 0:00:18.1]} 16... hxg5 {[%clk 0:00:33.3]} 17.
hxg5 {[%clk 0:00:17.7]} 17... Kf8 {[%clk 0:00:33.9]} 18. Rf1 {[%clk 0:00:10.7]}
18... Bxb3 {[%clk 0:00:13.6]} 19. cxb3 {[%clk 0:00:11.5]} 19... Qd7 {[%clk
0:00:11.4]} 20. O-O-O {[%clk 0:00:11.4]} 20... Qe6 {[%clk 0:00:06]} 21. Rf3
{[%clk 0:00:09.4]} 21... Ke7 {[%clk 0:00:04.6]} 22. Rdf1 {[%clk 0:00:09.7]}
22... Rf8 {[%clk 0:00:02.8]} 23. Kc2 {[%clk 0:00:10.1]} 23... g6 {[%clk
0:00:03.2]} 24. Qh7 {[%clk 0:00:09.7]} 24... Rae8 {[%clk 0:00:03.6]} 25. Rf6
{[%clk 0:00:09.6]} 25... Qe5 {[%clk 0:00:03.5]} 26. Rxg6 {[%clk 0:00:09.7]}
26... Qg3 {[%clk 0:00:03]} 27. Rgf6 {[%clk 0:00:08.6]} 27... Qxg2+ {[%clk
0:00:02.8]} 28. R1f2 {[%clk 0:00:09]} 28... Qxg5 {[%clk 0:00:01.8]} 29. Rxf7+
{[%clk 0:00:09.5]} 29... Rxf7 {[%clk 0:00:02.1]} 30. Rxf7+ {[%clk 0:00:09.4]}
30... Kd8 {[%clk 0:00:02.5]} 31. Rd7+ {[%clk 0:00:08.6]} 31... Kc8 {[%clk
0:00:02.4]} 32. Rc7+ {[%clk 0:00:09.5]} 32... Kb8 {[%clk 0:00:02.4]} 33. Rxb7+
{[%clk 0:00:09.8]} 33... Ka8 {[%clk 0:00:02.7]} 34. Rg7 {[%clk 0:00:08.1]} 34...
Qe3 {[%clk 0:00:02.6]} 35. Qh5 {[%clk 0:00:06.5]} 35... Rf8 {[%clk 0:00:01.3]}
36. Rf7 {[%clk 0:00:05.3]} 1-0

[Event "Early-Titled-Tuesday-Blitz-January-16-2024"]
[Site "Chess.com"]
[Date "2024.01.16"]
[Round "1"]
[White "KNVB"]
[Black "elchacal664"]
[Result "1-0"]
[WhiteElo "2685"]
[BlackElo "2356"]
[TimeControl "180+1"]
[EndTime "8:07:38 PST"]
[Termination "KNVB won by resignation"]

1. d4 {[%clk 0:03:00.1]} 1... e5 {[%clk 0:02:59.5]} 2. dxe5 {[%clk 0:03:00]}
2... Nc6 {[%clk 0:02:59.6]} 3. Nc3 {[%clk 0:03:00]} 3... Qe7 {[%clk 0:03:00.2]}
4. Nd5 {[%clk 0:02:58.5]} 4... Qd8 {[%clk 0:02:57.3]} 5. Nf3 {[%clk 0:02:55.8]}
5... h6 {[%clk 0:02:39.2]} 6. Bf4 {[%clk 0:02:50.1]} 6... Nge7 {[%clk
0:02:39.3]} 7. e4 {[%clk 0:02:01.6]} 7... Ng6 {[%clk 0:02:34.5]} 8. Bg3 {[%clk
0:02:01.6]} 8... d6 {[%clk 0:02:29.4]} 9. exd6 {[%clk 0:01:43.6]} 9... Bxd6
{[%clk 0:02:30.3]} 10. Bxd6 {[%clk 0:01:25.7]} 10... Qxd6 {[%clk 0:02:28.9]} 11.
Qd2 {[%clk 0:01:26.6]} 11... O-O {[%clk 0:02:27.1]} 12. O-O-O {[%clk 0:01:25.8]}
12... Re8 {[%clk 0:02:27.5]} 13. Nd4 {[%clk 0:00:49.5]} 13... Nxd4 {[%clk
0:02:00.9]} 14. Qxd4 {[%clk 0:00:50.4]} 14... Be6 {[%clk 0:01:57.5]} 15. Nc3
{[%clk 0:00:29.5]} 15... Qf4+ {[%clk 0:01:50.5]} 16. Qd2 {[%clk 0:00:29.1]}
16... Qf6 {[%clk 0:01:48.9]} 17. Qe3 {[%clk 0:00:24.2]} 17... Ne5 {[%clk
0:01:43.9]} 18. Be2 {[%clk 0:00:21.9]} 18... a6 {[%clk 0:01:32.7]} 19. f4 {[%clk
0:00:21]} 19... Nc4 {[%clk 0:01:23.7]} 20. Bxc4 {[%clk 0:00:17.3]} 20... Bxc4
{[%clk 0:01:24.6]} 21. g3 {[%clk 0:00:13.9]} 21... b5 {[%clk 0:01:24.1]} 22.
Rhe1 {[%clk 0:00:10.5]} 22... b4 {[%clk 0:01:18]} 23. Qd4 {[%clk 0:00:08.4]}
23... bxc3 {[%clk 0:01:16.2]} 24. Qxc4 {[%clk 0:00:06.6]} 24... cxb2+ {[%clk
0:01:17.1]} 25. Kb1 {[%clk 0:00:06.9]} 25... Qb6 {[%clk 0:01:13.8]} 26. e5
{[%clk 0:00:03]} 26... Re6 {[%clk 0:01:13.6]} 27. Re2 {[%clk 0:00:02.6]} 27...
Rc6 {[%clk 0:01:13.4]} 28. Qd4 {[%clk 0:00:02.5]} 28... Qb5 {[%clk 0:01:09.6]}
29. f5 {[%clk 0:00:02.9]} 29... Rb8 {[%clk 0:01:08.3]} 30. g4 {[%clk 0:00:03]}
30... Qb4 {[%clk 0:01:05.4]} 31. Qxb4 {[%clk 0:00:02.4]} 31... Rxb4 {[%clk
0:01:04.7]} 32. h3 {[%clk 0:00:03.3]} 32... Rb8 {[%clk 0:01:00.9]} 33. Rd4
{[%clk 0:00:02.6]} 33... Re8 {[%clk 0:01:01.1]} 34. Rde4 {[%clk 0:00:02.3]}
34... Rc5 {[%clk 0:01:00.5]} 35. Kxb2 {[%clk 0:00:02.4]} 35... Rb8+ {[%clk
0:00:59.2]} 36. Kc1 {[%clk 0:00:03]} 36... Kf8 {[%clk 0:00:58.3]} 37. R2e3
{[%clk 0:00:02.9]} 37... Ke7 {[%clk 0:00:58.2]} 38. Rb3 {[%clk 0:00:02.8]} 38...
Rd8 {[%clk 0:00:57.8]} 39. Ra3 {[%clk 0:00:02.2]} 39... Rc6 {[%clk 0:00:57.3]}
40. Kb1 {[%clk 0:00:01.7]} 40... Rd5 {[%clk 0:00:56.9]} 41. Rb3 {[%clk
0:00:01.8]} 41... Rdc5 {[%clk 0:00:57]} 42. Rb2 {[%clk 0:00:01.4]} 42... Rc3
{[%clk 0:00:56.6]} 43. Rb3 {[%clk 0:00:01.4]} 43... R3c4 {[%clk 0:00:55.7]} 44.
Rxc4 {[%clk 0:00:01.5]} 44... Rxc4 {[%clk 0:00:56.6]} 45. Re3 {[%clk 0:00:01.7]}
45... Rb4+ {[%clk 0:00:56.2]} 46. Kc1 {[%clk 0:00:02.1]} 46... Rf4 {[%clk
0:00:57]} 47. Kd2 {[%clk 0:00:02.3]} 47... Rf2+ {[%clk 0:00:57.3]} 48. Kc3
{[%clk 0:00:02.8]} 48... Kd7 {[%clk 0:00:53.6]} 49. Kb3 {[%clk 0:00:02.9]} 49...
Kc6 {[%clk 0:00:54.1]} 50. a4 {[%clk 0:00:03.1]} 50... Rf4 {[%clk 0:00:53.1]}
51. c3 {[%clk 0:00:03]} 51... Kb6 {[%clk 0:00:47.1]} 52. e6 {[%clk 0:00:03.1]}
52... fxe6 {[%clk 0:00:46.3]} 53. fxe6 {[%clk 0:00:04]} 53... Rf8 {[%clk
0:00:46.2]} 54. e7 {[%clk 0:00:04.6]} 54... Re8 {[%clk 0:00:46.7]} 55. Kb4
{[%clk 0:00:04.7]} 55... Kc6 {[%clk 0:00:47.2]} 56. Ka5 {[%clk 0:00:04.8]} 56...
Kd7 {[%clk 0:00:48.1]} 57. Kxa6 {[%clk 0:00:04.6]} 57... Rxe7 {[%clk 0:00:49]}
58. Rxe7+ {[%clk 0:00:04.4]} 58... Kxe7 {[%clk 0:00:49.9]} 59. Kb7 {[%clk
0:00:05]} 59... Kd6 {[%clk 0:00:50.7]} 60. a5 {[%clk 0:00:05.4]} 60... c5 {[%clk
0:00:51.5]} 61. c4 {[%clk 0:00:04.9]} 61... Ke5 {[%clk 0:00:51.4]} 62. Kb6
{[%clk 0:00:05.7]} 62... Kd4 {[%clk 0:00:52.2]} 63. Kb5 {[%clk 0:00:06.5]} 63...
Ke4 {[%clk 0:00:51.4]} 64. a6 {[%clk 0:00:07.4]} 1-0

[Event "Early-Titled-Tuesday-Blitz-January-16-2024"]
[Site "Chess.com"]
[Date "2024.01.16"]
[Round "1"]
[White "JiaHaoxiang"]
[Black "GrotBchess"]
[Result "1-0"]
[WhiteElo "2624"]
[BlackElo "2281"]
[TimeControl "180+1"]
[EndTime "8:07:39 PST"]
[Termination "JiaHaoxiang won by resignation"]

1. d4 {[%clk 0:02:54.2]} 1... Nf6 {[%clk 0:02:59.7]} 2. Bf4 {[%clk 0:02:54.2]}
2... e6 {[%clk 0:03:00]} 3. Nf3 {[%clk 0:02:54.1]} 3... d5 {[%clk 0:03:00.1]} 4.
e3 {[%clk 0:02:54.5]} 4... c5 {[%clk 0:03:00.1]} 5. c3 {[%clk 0:02:54.2]} 5...
Nc6 {[%clk 0:03:00.1]} 6. Bd3 {[%clk 0:02:54.4]} 6... Bd6 {[%clk 0:03:00.1]} 7.
Bg3 {[%clk 0:02:54.2]} 7... Qe7 {[%clk 0:02:57.9]} 8. Ne5 {[%clk 0:02:49.8]}
8... O-O {[%clk 0:02:57.5]} 9. Nd2 {[%clk 0:02:48.3]} 9... Nd7 {[%clk
0:02:57.5]} 10. f4 {[%clk 0:02:47.5]} 10... f6 {[%clk 0:02:50.3]} 11. Nxc6
{[%clk 0:02:26.1]} 11... bxc6 {[%clk 0:02:49.6]} 12. O-O {[%clk 0:02:26.6]}
12... Bb7 {[%clk 0:02:37.1]} 13. Kh1 {[%clk 0:02:11.6]} 13... e5 {[%clk
0:02:34.7]} 14. fxe5 {[%clk 0:02:10.4]} 14... fxe5 {[%clk 0:02:34]} 15. Qh5
{[%clk 0:02:08.7]} 15... g6 {[%clk 0:02:17.1]} 16. Bxg6 {[%clk 0:01:48.5]} 16...
hxg6 {[%clk 0:01:55.1]} 17. Qxg6+ {[%clk 0:01:46.8]} 17... Kh8 {[%clk
0:01:53.9]} 18. Qh6+ {[%clk 0:01:46.2]} 18... Kg8 {[%clk 0:01:48.8]} 19. Bh4
{[%clk 0:01:46.1]} 19... Qg7 {[%clk 0:00:58.3]} 20. Qxd6 {[%clk 0:01:41.5]}
20... cxd4 {[%clk 0:00:53.9]} 21. cxd4 {[%clk 0:01:29.7]} 21... e4 {[%clk
0:00:53.2]} 22. Rxf8+ {[%clk 0:01:17.5]} 22... Rxf8 {[%clk 0:00:50.1]} 23. Rf1
{[%clk 0:01:16.1]} 23... Rxf1+ {[%clk 0:00:43.1]} 24. Nxf1 {[%clk 0:01:14.8]}
24... Ba6 {[%clk 0:00:40.5]} 25. Ng3 {[%clk 0:01:10.6]} 25... Qg4 {[%clk
0:00:36.8]} 26. h3 {[%clk 0:00:49.2]} 26... Qxh4 {[%clk 0:00:34]} 27. Nf5 {[%clk
0:00:43]} 27... Qg5 {[%clk 0:00:26.2]} 28. Qxd7 {[%clk 0:00:38.5]} 28... Bf1
{[%clk 0:00:24.2]} 29. Qe8+ {[%clk 0:00:37.9]} 29... Kh7 {[%clk 0:00:20.6]} 30.
Qf7+ {[%clk 0:00:37.5]} 30... Kh8 {[%clk 0:00:20.6]} 31. Qf8+ {[%clk 0:00:22.5]}
31... Kh7 {[%clk 0:00:19.7]} 32. Qe7+ {[%clk 0:00:22.9]} 32... Qxe7 {[%clk
0:00:17.2]} 33. Nxe7 {[%clk 0:00:23.8]} 33... Bb5 {[%clk 0:00:17.1]} 34. b3
{[%clk 0:00:23.1]} 34... Kg7 {[%clk 0:00:14.6]} 35. a4 {[%clk 0:00:23.2]} 35...
Bd3 {[%clk 0:00:15]} 36. Nxc6 {[%clk 0:00:23]} 36... Bc2 {[%clk 0:00:14.9]} 37.
Nxa7 {[%clk 0:00:20.4]} 37... Bxb3 {[%clk 0:00:14.4]} 38. a5 {[%clk 0:00:21]}
38... Ba4 {[%clk 0:00:12.7]} 39. a6 {[%clk 0:00:20.6]} 39... Bd7 {[%clk
0:00:12.6]} 40. Kh2 {[%clk 0:00:19.3]} 40... Kf7 {[%clk 0:00:12.6]} 41. Kg3
{[%clk 0:00:20]} 41... Ke7 {[%clk 0:00:12.4]} 42. h4 {[%clk 0:00:20.5]} 42...
Kd6 {[%clk 0:00:12.7]} 43. h5 {[%clk 0:00:21.1]} 43... Kc7 {[%clk 0:00:13.1]}
44. h6 {[%clk 0:00:21.6]} 44... Kb6 {[%clk 0:00:12.9]} 45. h7 {[%clk 0:00:21.6]}
45... Kxa7 {[%clk 0:00:11.3]} 46. h8=Q {[%clk 0:00:22.5]} 1-0

[Event "Early-Titled-Tuesday-Blitz-January-16-2024"]
[Site "Chess.com"]
[Date "2024.01.16"]
[Round "1"]
[White "TimGrutter03"]
[Black "MatthewG-p4p"]
[Result "1-0"]
[WhiteElo "2520"]
[BlackElo "2926"]
[TimeControl "180+1"]
[EndTime "8:07:40 PST"]
[Termination "TimGrutter03 won by resignation"]

1. Nf3 {[%clk 0:03:00.9]} 1... c5 {[%clk 0:02:44.7]} 2. e3 {[%clk 0:03:00.7]}
2... g6 {[%clk 0:02:43.2]} 3. c4 {[%clk 0:02:57.1]} 3... Bg7 {[%clk 0:02:43.3]}
4. Nc3 {[%clk 0:02:57.1]} 4... Nf6 {[%clk 0:02:43.3]} 5. Be2 {[%clk 0:02:57.3]}
5... O-O {[%clk 0:02:42.6]} 6. O-O {[%clk 0:02:57.8]} 6... d5 {[%clk 0:02:37.7]}
7. cxd5 {[%clk 0:02:55.8]} 7... Nxd5 {[%clk 0:02:38.6]} 8. d4 {[%clk 0:02:50.7]}
8... cxd4 {[%clk 0:02:32.7]} 9. Nxd5 {[%clk 0:02:42.7]} 9... Qxd5 {[%clk
0:02:33.6]} 10. Nxd4 {[%clk 0:02:42.3]} 10... Rd8 {[%clk 0:02:26.1]} 11. Bf3
{[%clk 0:02:34.3]} 11... Qa5 {[%clk 0:02:20.1]} 12. Qb3 {[%clk 0:02:32.2]} 12...
Na6 {[%clk 0:01:35.6]} 13. Rd1 {[%clk 0:02:16.2]} 13... e5 {[%clk 0:01:24.9]}
14. Bd2 {[%clk 0:02:10.5]} 14... Qb6 {[%clk 0:01:16.5]} 15. Qxb6 {[%clk
0:02:03.1]} 15... axb6 {[%clk 0:01:17.4]} 16. Nb5 {[%clk 0:01:59.9]} 16... Nc5
{[%clk 0:01:15.8]} 17. Bc3 {[%clk 0:01:47.9]} 17... Bf5 {[%clk 0:00:42.4]} 18.
Rxd8+ {[%clk 0:01:34.9]} 18... Rxd8 {[%clk 0:00:41.7]} 19. Rd1 {[%clk
0:01:35.5]} 19... Rxd1+ {[%clk 0:00:26.9]} 20. Bxd1 {[%clk 0:01:36.4]} 20... Bd7
{[%clk 0:00:19.7]} 21. Nd6 {[%clk 0:01:30.2]} 21... Bc6 {[%clk 0:00:17.3]} 22.
Nc4 {[%clk 0:01:27.6]} 22... Nd7 {[%clk 0:00:17.6]} 23. Bb3 {[%clk 0:01:17]}
23... h5 {[%clk 0:00:17.6]} 24. Nd6 {[%clk 0:01:15.7]} 24... Bf6 {[%clk
0:00:11.4]} 25. Bxf7+ {[%clk 0:01:09.7]} 25... Kg7 {[%clk 0:00:10.9]} 26. Bb3
{[%clk 0:01:06.5]} 26... Be7 {[%clk 0:00:11.4]} 27. Nc4 {[%clk 0:01:02.4]} 27...
Bf6 {[%clk 0:00:11.9]} 28. Bc2 {[%clk 0:00:55.6]} 28... h4 {[%clk 0:00:11.5]}
29. Nd6 {[%clk 0:00:49.7]} 29... Be7 {[%clk 0:00:11.3]} 30. Nc4 {[%clk
0:00:42.7]} 30... Bf6 {[%clk 0:00:11.4]} 31. f3 {[%clk 0:00:42.2]} 31... h3
{[%clk 0:00:11.1]} 32. e4 {[%clk 0:00:42.4]} 32... hxg2 {[%clk 0:00:10.4]} 33.
Kxg2 {[%clk 0:00:43.3]} 33... g5 {[%clk 0:00:09.6]} 34. Bd2 {[%clk 0:00:40.7]}
34... Nf8 {[%clk 0:00:09.6]} 35. Nxb6 {[%clk 0:00:39.1]} 35... Ng6 {[%clk
0:00:10.3]} 36. Nc4 {[%clk 0:00:34.1]} 36... Nh4+ {[%clk 0:00:09.8]} 37. Kg3
{[%clk 0:00:34.5]} 37... Ng6 {[%clk 0:00:09.9]} 38. Na5 {[%clk 0:00:34.3]} 38...
Ne7 {[%clk 0:00:07.6]} 39. Bb4 {[%clk 0:00:32.5]} 39... Ng6 {[%clk 0:00:05.8]}
40. Nxc6 {[%clk 0:00:32.2]} 40... bxc6 {[%clk 0:00:06.7]} 41. a4 {[%clk
0:00:31.8]} 41... Bd8 {[%clk 0:00:06.6]} 42. a5 {[%clk 0:00:31.6]} 42... Nf4
{[%clk 0:00:07.3]} 43. a6 {[%clk 0:00:26.2]} 43... Bb6 {[%clk 0:00:07.2]} 44.
Bd6 {[%clk 0:00:23.3]} 44... Kf6 {[%clk 0:00:04.7]} 45. Bb8 {[%clk 0:00:23.4]}
45... Ne6 {[%clk 0:00:04.1]} 46. a7 {[%clk 0:00:22.3]} 46... Nc7 {[%clk
0:00:03.8]} 47. Bxc7 {[%clk 0:00:22.4]} 47... Bxa7 {[%clk 0:00:04.5]} 48. Bd8+
{[%clk 0:00:21.2]} 48... Kg6 {[%clk 0:00:05.2]} 49. Kg4 {[%clk 0:00:19.9]} 1-0

[Event "Early-Titled-Tuesday-Blitz-January-16-2024"]
[Site "Chess.com"]
[Date "2024.01.16"]
[Round "1"]
[White "Grindaveci"]
[Black "GrigorGrigorov"]
[Result "0-1"]
[WhiteElo "2501"]
[BlackElo "2938"]
[TimeControl "180+1"]
[EndTime "8:07:42 PST"]
[Termination "GrigorGrigorov won by resignation"]

1. e4 {[%clk 0:03:00]} 1... c6 {[%clk 0:02:59.9]} 2. d4 {[%clk 0:02:59.8]} 2...
d5 {[%clk 0:03:00.2]} 3. e5 {[%clk 0:03:00.4]} 3... Bf5 {[%clk 0:02:59.8]} 4. h4
{[%clk 0:02:59.7]} 4... h5 {[%clk 0:02:59.5]} 5. Bd3 {[%clk 0:02:59.4]} 5...
Bxd3 {[%clk 0:02:58.9]} 6. Qxd3 {[%clk 0:03:00.3]} 6... Qa5+ {[%clk 0:02:58.6]}
7. Nd2 {[%clk 0:02:59.8]} 7... e6 {[%clk 0:02:58.1]} 8. Nf3 {[%clk 0:02:59.2]}
8... Nh6 {[%clk 0:02:55.8]} 9. O-O {[%clk 0:02:57.9]} 9... Nf5 {[%clk
0:02:54.4]} 10. c4 {[%clk 0:02:56.7]} 10... Be7 {[%clk 0:02:45.6]} 11. g3 {[%clk
0:02:36.6]} 11... O-O {[%clk 0:02:43.7]} 12. a4 {[%clk 0:02:36.4]} 12... Rd8
{[%clk 0:02:39.3]} 13. b3 {[%clk 0:02:33.1]} 13... c5 {[%clk 0:02:38.2]} 14. Ba3
{[%clk 0:02:17.4]} 14... Nc6 {[%clk 0:02:34.4]} 15. cxd5 {[%clk 0:02:03.9]}
15... Rxd5 {[%clk 0:02:31.4]} 16. Nc4 {[%clk 0:01:54.8]} 16... Qa6 {[%clk
0:02:24.3]} 17. Qe4 {[%clk 0:01:37.8]} 17... Ncxd4 {[%clk 0:02:19.2]} 18. Ng5
{[%clk 0:01:27]} 18... Bxg5 {[%clk 0:02:12.7]} 19. hxg5 {[%clk 0:01:26.7]} 19...
Nxb3 {[%clk 0:02:06.3]} 20. g6 {[%clk 0:01:12.5]} 20... Rd4 {[%clk 0:01:54.5]}
21. gxf7+ {[%clk 0:01:11.9]} 21... Kxf7 {[%clk 0:01:55]} 22. Qf3 {[%clk
0:01:09.8]} 22... Qxc4 {[%clk 0:01:51.7]} 23. Qxb7+ {[%clk 0:01:06.8]} 23... Kg6
{[%clk 0:01:51.2]} 24. Qxa8 {[%clk 0:01:06.4]} 24... Nxa1 {[%clk 0:01:50.9]} 25.
Rxa1 {[%clk 0:01:05.3]} 25... Qxa4 {[%clk 0:01:29.4]} 26. Kh2 {[%clk 0:00:47.7]}
26... Rd2 {[%clk 0:01:11.3]} 27. Kg2 {[%clk 0:00:23.9]} 27... Ne3+ {[%clk
0:00:57.6]} 28. Kg1 {[%clk 0:00:23.9]} 28... Rd1+ {[%clk 0:00:57.3]} 29. Rxd1
{[%clk 0:00:21.8]} 29... Qxd1+ {[%clk 0:00:56.7]} 30. Kh2 {[%clk 0:00:22.4]}
30... Ng4+ {[%clk 0:00:49.3]} 31. Kg2 {[%clk 0:00:21.4]} 31... Qd5+ {[%clk
0:00:22.8]} 32. Qxd5 {[%clk 0:00:21]} 32... exd5 {[%clk 0:00:23.7]} 33. Bxc5
{[%clk 0:00:21.7]} 33... a5 {[%clk 0:00:20.1]} 34. f4 {[%clk 0:00:18.6]} 34...
Kf5 {[%clk 0:00:18.4]} 35. Kf3 {[%clk 0:00:17.7]} 35... g6 {[%clk 0:00:17.2]}
36. Bf8 {[%clk 0:00:12]} 36... a4 {[%clk 0:00:14.5]} 37. Bb4 {[%clk 0:00:11]}
37... Nh6 {[%clk 0:00:12.2]} 38. Ke3 {[%clk 0:00:06.7]} 38... Ke6 {[%clk
0:00:12.7]} 39. Kd4 {[%clk 0:00:06.7]} 39... Nf5+ {[%clk 0:00:13.1]} 40. Kc5
{[%clk 0:00:04.2]} 40... Nxg3 {[%clk 0:00:13.7]} 41. Kb5 {[%clk 0:00:04.7]}
41... Ne2 {[%clk 0:00:13.6]} 42. Bd2 {[%clk 0:00:03.6]} 42... a3 {[%clk
0:00:13.2]} 0-1